[Event "Titled Tuesday Blitz July 25 Late 2023"]
[White "Eggleston, Thomas A"]
[Black "Vaglio Munoz, Jaime"]
[WhiteFideId "412139"]
[BlackFideId "6500145"]
[WhiteElo "2407"]
[BlackElo "2251"]
[Result "1-0"]
[Round "5"]
[TimeControl "180+2"]
[Date "2023.07.25"]
[WhiteClock "0:00:05"]
[BlackClock "0:00:18"]
[Board "148"]

1. e4 {[%clk 0:03:00]}  c5 {[%clk 0:02:58]} 2. Nf3 {[%clk 0:03:01]}  Qa5 {[%clk 0:02:58]} 3. Bc4 {[%clk 0:02:58]}  a6 {[%clk 0:02:58]} 4. O-O {[%clk 0:02:52]}  e6 {[%clk 0:02:58]} 5. c3 {[%clk 0:02:51]}  b5 {[%clk 0:02:57]} 6. Bb3 {[%clk 0:02:49]}  Bb7 {[%clk 0:02:57]} 7. Bc2 {[%clk 0:02:48]}  Nf6 {[%clk 0:02:55]} 8. Re1 {[%clk 0:02:48]}  Be7 {[%clk 0:02:54]} 9. d4 {[%clk 0:02:48]}  d5 {[%clk 0:02:44]} 10. exd5 {[%clk 0:02:40]}  Bxd5 {[%clk 0:02:42]} 11. dxc5 {[%clk 0:02:38]}  b4 {[%clk 0:02:42]} 12. cxb4 {[%clk 0:02:20]}  Qxb4 {[%clk 0:02:43]} 13. Ba4+ {[%clk 0:02:19]}  Bc6 {[%clk 0:02:34]} 14. Bb3 {[%clk 0:02:07]}  O-O {[%clk 0:02:28]} 15. Ne5 {[%clk 0:02:01]}  Rd8 {[%clk 0:02:23]} 16. Qe2 {[%clk 0:01:51]}  Bb5 {[%clk 0:02:10]} 17. Qe3 {[%clk 0:01:40]}  Bxc5 {[%clk 0:02:08]} 18. Bd2 {[%clk 0:01:28]}  Bxe3 {[%clk 0:02:02]} 19. Bxb4 {[%clk 0:01:28]}  Bd4 {[%clk 0:02:02]} 20. Nc3 {[%clk 0:01:21]}  Nc6 {[%clk 0:01:58]} 21. Nxb5 {[%clk 0:01:12]}  Bxe5 {[%clk 0:01:40]} 22. Bc3 {[%clk 0:01:03]}  axb5 {[%clk 0:01:34]} 23. Bxe5 {[%clk 0:01:03]}  Nxe5 {[%clk 0:01:33]} 24. Rxe5 {[%clk 0:01:03]}  Rd2 {[%clk 0:01:33]} 25. Rxb5 {[%clk 0:00:46]}  Rxb2 {[%clk 0:01:32]} 26. f3 {[%clk 0:00:30]}  Rd8 {[%clk 0:01:27]} 27. Bc4 {[%clk 0:00:26]}  Rc2 {[%clk 0:01:26]} 28. Bf1 {[%clk 0:00:25]}  g6 {[%clk 0:01:23]} 29. a4 {[%clk 0:00:25]}  Nd5 {[%clk 0:01:09]} 30. Rb3 {[%clk 0:00:21]}  Rd7 {[%clk 0:01:02]} 31. a5 {[%clk 0:00:21]}  Ra7 {[%clk 0:01:02]} 32. a6 {[%clk 0:00:21]}  Rcc7 {[%clk 0:00:57]} 33. Rab1 {[%clk 0:00:17]}  Ne7 {[%clk 0:00:33]} 34. Rb7 {[%clk 0:00:17]}  Nc6 {[%clk 0:00:31]} 35. Rxc7 {[%clk 0:00:16]}  Rxc7 {[%clk 0:00:31]} 36. Rb7 {[%clk 0:00:16]}  Rxb7 {[%clk 0:00:30]} 37. axb7 {[%clk 0:00:16]}  Kf8 {[%clk 0:00:31]} 38. Kf2 {[%clk 0:00:16]}  Ke7 {[%clk 0:00:31]} 39. Ke3 {[%clk 0:00:14]}  Kd6 {[%clk 0:00:32]} 40. Bb5 {[%clk 0:00:12]}  Nb8 {[%clk 0:00:28]} 41. Be8 {[%clk 0:00:11]}  f6 {[%clk 0:00:27]} 42. h4 {[%clk 0:00:11]}  Kc7 {[%clk 0:00:25]} 43. Bf7 {[%clk 0:00:11]}  e5 {[%clk 0:00:25]} 44. Bg8 {[%clk 0:00:10]}  h6 {[%clk 0:00:24]} 45. Bh7 {[%clk 0:00:10]}  g5 {[%clk 0:00:24]} 46. hxg5 {[%clk 0:00:09]}  hxg5 {[%clk 0:00:25]} 47. Ke4 {[%clk 0:00:09]}  Kxb7 {[%clk 0:00:24]} 48. Kf5 {[%clk 0:00:09]}  Nd7 {[%clk 0:00:24]} 49. Bg8 {[%clk 0:00:07]}  Kc7 {[%clk 0:00:24]} 50. Ke6 {[%clk 0:00:07]}  e4 {[%clk 0:00:22]} 51. fxe4 {[%clk 0:00:07]}  Nc5+ {[%clk 0:00:22]} 52. Kxf6 {[%clk 0:00:07]}  Nxe4+ {[%clk 0:00:23]} 53. Kf5 {[%clk 0:00:07]}  Nd6+ {[%clk 0:00:21]} 54. Kxg5 {[%clk 0:00:06]}  Kd7 {[%clk 0:00:21]} 55. Kf6 {[%clk 0:00:06]}  Ke8 {[%clk 0:00:20]} 56. Be6 {[%clk 0:00:05]}  Kf8 {[%clk 0:00:19]} 57. g4 {[%clk 0:00:05]}  Ne8+ {[%clk 0:00:20]} 58. Kg6 {[%clk 0:00:05]}  Ng7 {[%clk 0:00:19]} 59. Bf7 {[%clk 0:00:04]}  Ne8 {[%clk 0:00:12]} 60. Bxe8 {[%clk 0:00:04]}  Kxe8 {[%clk 0:00:12]} 61. Kg7 {[%clk 0:00:04]}  Ke7 {[%clk 0:00:13]} 62. g5 {[%clk 0:00:04]}  Ke8 {[%clk 0:00:13]} 63. g6 {[%clk 0:00:05]}  Ke7 {[%clk 0:00:13]} 64. Kh8 {[%clk 0:00:05]}  Kf8 {[%clk 0:00:13]} 65. g7+ {[%clk 0:00:06]}  Kf7 {[%clk 0:00:14]} 66. g8=Q+ {[%clk 0:00:06]}  Kf6 {[%clk 0:00:15]} 67. Qg4 {[%clk 0:00:06]}  Kf7 {[%clk 0:00:15]} 68. Qf5+ {[%clk 0:00:05]}  Ke7 {[%clk 0:00:15]} 69. Kg7 {[%clk 0:00:05]}  Kd6 {[%clk 0:00:15]} 70. Kf7 {[%clk 0:00:06]}  Kc7 {[%clk 0:00:14]} 71. Qe6 {[%clk 0:00:06]}  Kd8 {[%clk 0:00:14]} 72. Kg6 {[%clk 0:00:05]}  Kc7 {[%clk 0:00:14]} 73. Kf5 {[%clk 0:00:06]}  Kd8 {[%clk 0:00:13]} 74. Qf7 {[%clk 0:00:06]}  Kc8 {[%clk 0:00:13]} 75. Qe7 {[%clk 0:00:06]}  Kb8 {[%clk 0:00:14]} 76. Qd7 {[%clk 0:00:07]}  Ka8 {[%clk 0:00:15]} 77. Ke5 {[%clk 0:00:07]}  Kb8 {[%clk 0:00:15]} 78. Kd5 {[%clk 0:00:08]}  Ka8 {[%clk 0:00:16]} 79. Kc6 {[%clk 0:00:08]}  Kb8 {[%clk 0:00:17]} 80. Kb6 {[%clk 0:00:08]}  Ka8 {[%clk 0:00:18]} 81. Qd8# {[%clk 0:00:05]} 1-0


[Site "https://www.chess.com"]

[Event "Titled Tuesday Blitz July 25 Late 2023"]
[White "Sariego Figueredo, Wilfredo"]
[Black "Nunez V, Gustavo Eduardo"]
[WhiteFideId "3500080"]
[BlackFideId "4403690"]
[WhiteElo "2238"]
[BlackElo "2407"]
[Result "1-0"]
[Round "5"]
[TimeControl "180+2"]
[Date "2023.07.25"]
[WhiteClock "0:00:18"]
[BlackClock "0:00:13"]
[Board "149"]

1. d4 {[%clk 0:03:00]}  Nf6 {[%clk 0:02:53]} 2. Bf4 {[%clk 0:02:59]}  g6 {[%clk 0:02:52]} 3. Nc3 {[%clk 0:02:58]}  d5 {[%clk 0:02:52]} 4. Nf3 {[%clk 0:02:58]}  Bg7 {[%clk 0:02:51]} 5. h4 {[%clk 0:02:58]}  h6 {[%clk 0:02:50]} 6. e3 {[%clk 0:02:58]}  O-O {[%clk 0:02:50]} 7. Be2 {[%clk 0:02:57]}  c5 {[%clk 0:02:50]} 8. Ne5 {[%clk 0:02:57]}  Nc6 {[%clk 0:02:48]} 9. g4 {[%clk 0:02:51]}  Nd7 {[%clk 0:02:47]} 10. Nxd7 {[%clk 0:02:35]}  Qxd7 {[%clk 0:02:45]} 11. dxc5 {[%clk 0:02:28]}  e5 {[%clk 0:02:42]} 12. Bg3 {[%clk 0:02:27]}  Rd8 {[%clk 0:02:35]} 13. Qd2 {[%clk 0:02:18]}  d4 {[%clk 0:02:26]} 14. exd4 {[%clk 0:02:04]}  Nxd4 {[%clk 0:02:26]} 15. O-O-O {[%clk 0:01:59]}  Qc6 {[%clk 0:02:26]} 16. Bd3 {[%clk 0:01:54]}  Qxc5 {[%clk 0:02:19]} 17. Ne4 {[%clk 0:01:50]}  Qc6 {[%clk 0:02:16]} 18. g5 {[%clk 0:01:48]}  h5 {[%clk 0:02:07]} 19. Qc3 {[%clk 0:01:38]}  Qxc3 {[%clk 0:01:51]} 20. bxc3 {[%clk 0:01:39]}  Nf5 {[%clk 0:01:49]} 21. Nf6+ {[%clk 0:01:28]}  Bxf6 {[%clk 0:01:48]} 22. gxf6 {[%clk 0:01:29]}  Nxg3 {[%clk 0:01:46]} 23. fxg3 {[%clk 0:01:30]}  Be6 {[%clk 0:01:36]} 24. Kb2 {[%clk 0:01:25]}  Rd6 {[%clk 0:01:23]} 25. Be4 {[%clk 0:01:20]}  Rb6+ {[%clk 0:01:22]} 26. Ka1 {[%clk 0:01:19]}  Rc8 {[%clk 0:01:16]} 27. Rd3 {[%clk 0:01:05]}  Bc4 {[%clk 0:01:08]} 28. Rd7 {[%clk 0:01:00]}  Ra6 {[%clk 0:01:01]} 29. Bxb7 {[%clk 0:00:51]}  Rxa2+ {[%clk 0:01:01]} 30. Kb1 {[%clk 0:00:52]}  Rb8 {[%clk 0:01:01]} 31. Rhd1 {[%clk 0:00:51]}  Kh7 {[%clk 0:00:56]} 32. Rc7 {[%clk 0:00:47]}  Be6 {[%clk 0:00:54]} 33. Rd6 {[%clk 0:00:44]}  Ra5 {[%clk 0:00:36]} 34. Rxe6 {[%clk 0:00:34]}  Rb5+ {[%clk 0:00:36]} 35. Kc1 {[%clk 0:00:34]}  R5xb7 {[%clk 0:00:33]} 36. Ree7 {[%clk 0:00:33]}  Rxc7 {[%clk 0:00:32]} 37. Rxc7 {[%clk 0:00:33]}  Kg8 {[%clk 0:00:30]} 38. Rxa7 {[%clk 0:00:33]}  Rb6 {[%clk 0:00:31]} 39. Ra8+ {[%clk 0:00:30]}  Kh7 {[%clk 0:00:30]} 40. Re8 {[%clk 0:00:31]}  Rxf6 {[%clk 0:00:30]} 41. Rxe5 {[%clk 0:00:31]}  Rf3 {[%clk 0:00:31]} 42. c4 {[%clk 0:00:24]}  Rxg3 {[%clk 0:00:30]} 43. c5 {[%clk 0:00:24]}  Rc3 {[%clk 0:00:30]} 44. Kd2 {[%clk 0:00:24]}  Rc4 {[%clk 0:00:30]} 45. Kd3 {[%clk 0:00:24]}  Rxh4 {[%clk 0:00:22]} 46. c6 {[%clk 0:00:24]}  Ra4 {[%clk 0:00:20]} 47. c7 {[%clk 0:00:24]}  Ra8 {[%clk 0:00:20]} 48. Re7 {[%clk 0:00:18]}  Kg7 {[%clk 0:00:20]} 49. Rd7 {[%clk 0:00:17]}  Rc8 {[%clk 0:00:21]} 50. c4 {[%clk 0:00:16]}  Kf6 {[%clk 0:00:21]} 51. c5 {[%clk 0:00:17]}  Ke6 {[%clk 0:00:21]} 52. c6 {[%clk 0:00:17]}  h4 {[%clk 0:00:16]} 53. Kc4 {[%clk 0:00:16]}  h3 {[%clk 0:00:11]} 54. Kc5 {[%clk 0:00:16]}  h2 {[%clk 0:00:11]} 55. Rd1 {[%clk 0:00:14]}  Rxc7 {[%clk 0:00:10]} 56. Kb6 {[%clk 0:00:15]}  Rc8 {[%clk 0:00:10]} 57. Kb7 {[%clk 0:00:15]}  Rh8 {[%clk 0:00:10]} 58. c7 {[%clk 0:00:15]}  g5 {[%clk 0:00:08]} 59. Rh1 {[%clk 0:00:13]}  Kd7 {[%clk 0:00:08]} 60. Rxh2 {[%clk 0:00:12]}  Rf8 {[%clk 0:00:04]} 61. Rd2+ {[%clk 0:00:11]}  Ke6 {[%clk 0:00:04]} 62. Rd8 {[%clk 0:00:11]}  Rxd8 {[%clk 0:00:02]} 63. cxd8=Q {[%clk 0:00:12]}  f6 {[%clk 0:00:02]} 64. Qe8+ {[%clk 0:00:12]}  Kf5 {[%clk 0:00:02]} 65. Qe3 {[%clk 0:00:12]}  Kg4 {[%clk 0:00:03]} 66. Qg1+ {[%clk 0:00:11]}  Kf4 {[%clk 0:00:03]} 67. Qf2+ {[%clk 0:00:12]}  Ke5 {[%clk 0:00:03]} 68. Qe3+ {[%clk 0:00:12]}  Kf5 {[%clk 0:00:04]} 69. Qf3+ {[%clk 0:00:12]}  Ke5 {[%clk 0:00:04]} 70. Kc6 {[%clk 0:00:12]}  f5 {[%clk 0:00:04]} 71. Qg3+ {[%clk 0:00:09]}  Kf6 {[%clk 0:00:05]} 72. Qd6+ {[%clk 0:00:10]}  Kf7 {[%clk 0:00:05]} 73. Qe5 {[%clk 0:00:10]}  Kg6 {[%clk 0:00:05]} 74. Qe6+ {[%clk 0:00:10]}  Kh5 {[%clk 0:00:06]} 75. Qxf5 {[%clk 0:00:11]}  Kh4 {[%clk 0:00:06]} 76. Qf1 {[%clk 0:00:11]}  g4 {[%clk 0:00:07]} 77. Qg1 {[%clk 0:00:12]}  g3 {[%clk 0:00:07]} 78. Kd5 {[%clk 0:00:13]}  Kg4 {[%clk 0:00:07]} 79. Ke4 {[%clk 0:00:14]}  Kh3 {[%clk 0:00:08]} 80. Kf3 {[%clk 0:00:14]}  Kh4 {[%clk 0:00:08]} 81. Qxg3+ {[%clk 0:00:15]}  Kh5 {[%clk 0:00:09]} 82. Qg4+ {[%clk 0:00:15]}  Kh6 {[%clk 0:00:10]} 83. Kf4 {[%clk 0:00:16]}  Kh7 {[%clk 0:00:11]} 84. Kf5 {[%clk 0:00:17]}  Kh8 {[%clk 0:00:12]} 85. Kf6 {[%clk 0:00:18]}  Kh7 {[%clk 0:00:13]} 86. Qg7# {[%clk 0:00:18]} 1-0


[Site "https://www.chess.com"]

[Event "Titled Tuesday Blitz July 25 Late 2023"]
[White "De Souza, Cristiano Gomes"]
[Black "Ai, Evan"]
[WhiteFideId "2151758"]
[BlackFideId "2094770"]
[WhiteElo "2226"]
[BlackElo "2399"]
[Result "0-1"]
[Round "5"]
[TimeControl "180+2"]
[Date "2023.07.25"]
[WhiteClock "0:01:23"]
[BlackClock "0:00:51"]
[Board "151"]

1. d4 {[%clk 0:02:59]}  Nf6 {[%clk 0:02:59]} 2. c4 {[%clk 0:02:59]}  e6 {[%clk 0:02:59]} 3. Nf3 {[%clk 0:02:59]}  d5 {[%clk 0:02:59]} 4. Nc3 {[%clk 0:02:58]}  Be7 {[%clk 0:02:57]} 5. Bg5 {[%clk 0:02:58]}  O-O {[%clk 0:02:55]} 6. e3 {[%clk 0:02:58]}  b6 {[%clk 0:02:52]} 7. Rc1 {[%clk 0:02:57]}  dxc4 {[%clk 0:02:50]} 8. Bxc4 {[%clk 0:02:56]}  Bb7 {[%clk 0:02:50]} 9. Qe2 {[%clk 0:02:56]}  Nbd7 {[%clk 0:02:50]} 10. O-O {[%clk 0:02:55]}  Ne4 {[%clk 0:02:45]} 11. Bxe7 {[%clk 0:02:54]}  Qxe7 {[%clk 0:02:46]} 12. Rfd1 {[%clk 0:02:53]}  c5 {[%clk 0:02:37]} 13. Ba6 {[%clk 0:02:49]}  Nxc3 {[%clk 0:02:33]} 14. Rxc3 {[%clk 0:02:47]}  cxd4 {[%clk 0:02:15]} 15. Rxd4 {[%clk 0:02:42]}  Bxa6 {[%clk 0:02:13]} 16. Qxa6 {[%clk 0:02:40]}  Nc5 {[%clk 0:02:12]} 17. Qe2 {[%clk 0:02:34]}  Rfd8 {[%clk 0:02:01]} 18. h3 {[%clk 0:02:32]}  e5 {[%clk 0:01:57]} 19. Rdc4 {[%clk 0:02:25]}  f6 {[%clk 0:01:44]} 20. a3 {[%clk 0:02:21]}  a5 {[%clk 0:01:31]} 21. Qc2 {[%clk 0:01:49]}  Rd7 {[%clk 0:01:02]} 22. b4 {[%clk 0:01:47]}  axb4 {[%clk 0:01:03]} 23. axb4 {[%clk 0:01:46]}  Na4 {[%clk 0:00:59]} 24. Rc8+ {[%clk 0:01:45]}  Rd8 {[%clk 0:00:56]} 25. Rxa8 {[%clk 0:01:40]}  Rxa8 {[%clk 0:00:54]} 26. Rc8+ {[%clk 0:01:36]}  Rxc8 {[%clk 0:00:53]} 27. Qxc8+ {[%clk 0:01:36]}  Kf7 {[%clk 0:00:52]} 28. Qc3 {[%clk 0:01:23]}  Nxc3 {[%clk 0:00:51]} 0-1


[Site "https://www.chess.com"]

[Event "Titled Tuesday Blitz July 25 Late 2023"]
[White "Bueno, Alfeu Junior Varela"]
[Black "Ardila, Oscar Humberto"]
[WhiteFideId "2108879"]
[BlackFideId "4404742"]
[WhiteElo "2386"]
[BlackElo "2223"]
[Result "1-0"]
[Round "5"]
[TimeControl "180+2"]
[Date "2023.07.25"]
[WhiteClock "0:00:16"]
[BlackClock "0:00:07"]
[Board "153"]

1. e4 {[%clk 0:02:59]}  e5 {[%clk 0:01:01]} 2. Nc3 {[%clk 0:02:52]}  Nf6 {[%clk 0:01:00]} 3. f4 {[%clk 0:02:51]}  d6 {[%clk 0:00:59]} 4. Nf3 {[%clk 0:02:50]}  Bg4 {[%clk 0:00:59]} 5. Bc4 {[%clk 0:02:48]}  Bxf3 {[%clk 0:00:58]} 6. Qxf3 {[%clk 0:02:47]}  Nbd7 {[%clk 0:00:59]} 7. O-O {[%clk 0:02:43]}  Be7 {[%clk 0:00:59]} 8. d3 {[%clk 0:02:37]}  O-O {[%clk 0:00:59]} 9. Qg3 {[%clk 0:02:36]}  Kh8 {[%clk 0:00:57]} 10. Kh1 {[%clk 0:02:33]}  c6 {[%clk 0:00:57]} 11. Be3 {[%clk 0:02:30]}  b5 {[%clk 0:00:57]} 12. Bb3 {[%clk 0:02:30]}  a5 {[%clk 0:00:58]} 13. a4 {[%clk 0:02:30]}  b4 {[%clk 0:00:57]} 14. Ne2 {[%clk 0:02:30]}  Rc8 {[%clk 0:00:47]} 15. Rf2 {[%clk 0:02:28]}  Qc7 {[%clk 0:00:40]} 16. Raf1 {[%clk 0:02:27]}  d5 {[%clk 0:00:39]} 17. fxe5 {[%clk 0:02:20]}  Nxe5 {[%clk 0:00:38]} 18. Bf4 {[%clk 0:02:15]}  Nh5 {[%clk 0:00:38]} 19. Qh3 {[%clk 0:02:10]}  Nxf4 {[%clk 0:00:36]} 20. Nxf4 {[%clk 0:02:11]}  dxe4 {[%clk 0:00:21]} 21. d4 {[%clk 0:01:58]}  Ng6 {[%clk 0:00:14]} 22. Bxf7 {[%clk 0:01:58]}  Nxf4 {[%clk 0:00:12]} 23. Rxf4 {[%clk 0:01:59]}  Bd6 {[%clk 0:00:12]} 24. Bg6 {[%clk 0:01:34]}  h6 {[%clk 0:00:12]} 25. Rxf8+ {[%clk 0:01:34]}  Rxf8 {[%clk 0:00:11]} 26. Rxf8+ {[%clk 0:01:35]}  Bxf8 {[%clk 0:00:11]} 27. Bxe4 {[%clk 0:01:36]}  Qf4 {[%clk 0:00:10]} 28. Kg1 {[%clk 0:00:25]}  Qc1+ {[%clk 0:00:09]} 29. Kf2 {[%clk 0:00:24]}  Qd2+ {[%clk 0:00:10]} 30. Kf3 {[%clk 0:00:23]}  Qd1+ {[%clk 0:00:09]} 31. Ke3 {[%clk 0:00:20]}  Qc1+ {[%clk 0:00:08]} 32. Kd3 {[%clk 0:00:20]}  Qf1+ {[%clk 0:00:08]} 33. Kd2 {[%clk 0:00:19]}  Qf2+ {[%clk 0:00:07]} 34. Kd3 {[%clk 0:00:18]}  Qf1+ {[%clk 0:00:07]} 35. Ke3 {[%clk 0:00:17]}  Qe1+ {[%clk 0:00:07]} 36. Kf4 {[%clk 0:00:18]}  Bd6+ {[%clk 0:00:07]} 37. Kf5 {[%clk 0:00:18]}  g6+ {[%clk 0:00:05]} 38. Ke6 {[%clk 0:00:16]}  Qxe4+ {[%clk 0:00:05]} 39. Kxd6 {[%clk 0:00:17]}  Qd5+ {[%clk 0:00:05]} 40. Kc7 {[%clk 0:00:17]}  Kh7 {[%clk 0:00:02]} 41. Qd7+ {[%clk 0:00:16]}  Kh8 {[%clk 0:00:02]} 42. Qxd5 {[%clk 0:00:14]}  cxd5 {[%clk 0:00:03]} 43. Kd6 {[%clk 0:00:14]}  Kg7 {[%clk 0:00:04]} 44. Kxd5 {[%clk 0:00:15]}  Kf6 {[%clk 0:00:05]} 45. Kc6 {[%clk 0:00:15]}  Kf5 {[%clk 0:00:06]} 46. d5 {[%clk 0:00:15]}  Ke4 {[%clk 0:00:06]} 47. d6 {[%clk 0:00:15]}  Ke5 {[%clk 0:00:07]} 48. d7 {[%clk 0:00:16]}  Ke6 {[%clk 0:00:08]} 49. Kc7 {[%clk 0:00:15]}  Ke7 {[%clk 0:00:07]} 50. d8=Q+ {[%clk 0:00:16]} 1-0


[Site "https://www.chess.com"]

[Event "Titled Tuesday Blitz July 25 Late 2023"]
[White "Francisco_Ferrari"]
[Black "Lalanne, Pablo"]
[BlackFideId "112151"]
[WhiteElo "2206"]
[BlackElo "2381"]
[Result "1-0"]
[Round "5"]
[TimeControl "180+2"]
[Date "2023.07.25"]
[WhiteClock "0:00:09"]
[BlackClock "0:00:09"]
[Board "155"]

1. e4 {[%clk 0:02:56]}  c5 {[%clk 0:03:00]} 2. Nf3 {[%clk 0:02:50]}  d6 {[%clk 0:03:00]} 3. d4 {[%clk 0:02:49]}  cxd4 {[%clk 0:02:59]} 4. Nxd4 {[%clk 0:02:50]}  Nf6 {[%clk 0:02:59]} 5. Nc3 {[%clk 0:02:46]}  Nc6 {[%clk 0:02:58]} 6. Bc4 {[%clk 0:02:41]}  Qb6 {[%clk 0:02:58]} 7. Nxc6 {[%clk 0:02:27]}  bxc6 {[%clk 0:02:58]} 8. Bb3 {[%clk 0:02:27]}  g6 {[%clk 0:02:51]} 9. O-O {[%clk 0:02:25]}  Bg7 {[%clk 0:02:51]} 10. Be3 {[%clk 0:02:24]}  Qc7 {[%clk 0:02:50]} 11. h3 {[%clk 0:02:25]}  O-O {[%clk 0:02:50]} 12. f4 {[%clk 0:02:25]}  c5 {[%clk 0:02:21]} 13. f5 {[%clk 0:01:59]}  c4 {[%clk 0:02:15]} 14. Ba4 {[%clk 0:01:51]}  Bb7 {[%clk 0:02:15]} 15. Bd4 {[%clk 0:01:45]}  Bc6 {[%clk 0:01:42]} 16. fxg6 {[%clk 0:01:24]}  hxg6 {[%clk 0:01:39]} 17. Bxc6 {[%clk 0:01:14]}  Qxc6 {[%clk 0:01:40]} 18. Bxf6 {[%clk 0:01:09]}  exf6 {[%clk 0:01:30]} 19. Qd5 {[%clk 0:00:55]}  Rac8 {[%clk 0:01:24]} 20. Rad1 {[%clk 0:00:47]}  Qb6+ {[%clk 0:01:20]} 21. Qd4 {[%clk 0:00:39]}  Qxb2 {[%clk 0:01:12]} 22. Nd5 {[%clk 0:00:29]}  Qxd4+ {[%clk 0:01:09]} 23. Rxd4 {[%clk 0:00:30]}  f5 {[%clk 0:01:06]} 24. Rdd1 {[%clk 0:00:26]}  fxe4 {[%clk 0:00:50]} 25. Ne7+ {[%clk 0:00:25]}  Kh7 {[%clk 0:00:51]} 26. Nxc8 {[%clk 0:00:26]}  Rxc8 {[%clk 0:00:50]} 27. Rxd6 {[%clk 0:00:25]}  Rc7 {[%clk 0:00:45]} 28. g4 {[%clk 0:00:18]}  Be5 {[%clk 0:00:35]} 29. Rd5 {[%clk 0:00:15]}  f6 {[%clk 0:00:31]} 30. Re1 {[%clk 0:00:13]}  Rb7 {[%clk 0:00:26]} 31. Rxe4 {[%clk 0:00:12]}  Rb2 {[%clk 0:00:25]} 32. Rxc4 {[%clk 0:00:12]}  Rxa2 {[%clk 0:00:25]} 33. Rd7+ {[%clk 0:00:12]}  Kh6 {[%clk 0:00:25]} 34. h4 {[%clk 0:00:09]}  f5 {[%clk 0:00:09]} 35. g5+ {[%clk 0:00:09]} 1-0


[Site "https://www.chess.com"]

[Event "Titled Tuesday Blitz July 25 Late 2023"]
[White "Villarreal, Agustin"]
[Black "Osmonbekov, Talaibek"]
[WhiteFideId "125687"]
[BlackFideId "2017253"]
[WhiteElo "2372"]
[BlackElo "2161"]
[Result "0-1"]
[Round "5"]
[TimeControl "180+2"]
[Date "2023.07.25"]
[WhiteClock "0:00:03"]
[BlackClock "0:00:26"]
[Board "156"]

1. e4 {[%clk 0:03:00]}  c5 {[%clk 0:02:59]} 2. Nf3 {[%clk 0:03:01]}  d6 {[%clk 0:03:00]} 3. d4 {[%clk 0:03:01]}  cxd4 {[%clk 0:03:00]} 4. Nxd4 {[%clk 0:03:02]}  Nf6 {[%clk 0:03:01]} 5. Nc3 {[%clk 0:03:03]}  g6 {[%clk 0:03:02]} 6. Bc4 {[%clk 0:02:47]}  Bg7 {[%clk 0:03:01]} 7. h3 {[%clk 0:02:24]}  O-O {[%clk 0:02:59]} 8. Bb3 {[%clk 0:02:22]}  Nc6 {[%clk 0:02:58]} 9. Be3 {[%clk 0:02:22]}  Bd7 {[%clk 0:02:54]} 10. O-O {[%clk 0:02:22]}  Rc8 {[%clk 0:02:54]} 11. Re1 {[%clk 0:02:17]}  Ne5 {[%clk 0:02:53]} 12. Qe2 {[%clk 0:01:54]}  Nc6 {[%clk 0:02:30]} 13. Nf3 {[%clk 0:01:43]}  b6 {[%clk 0:02:16]} 14. Rad1 {[%clk 0:01:40]}  Na5 {[%clk 0:01:56]} 15. Bg5 {[%clk 0:01:31]}  Nxb3 {[%clk 0:01:44]} 16. axb3 {[%clk 0:01:32]}  Qc7 {[%clk 0:01:41]} 17. Rd2 {[%clk 0:01:13]}  Be6 {[%clk 0:01:23]} 18. Nd5 {[%clk 0:01:05]}  Qb7 {[%clk 0:01:19]} 19. c4 {[%clk 0:00:57]}  a6 {[%clk 0:01:00]} 20. Nxf6+ {[%clk 0:00:42]}  exf6 {[%clk 0:00:59]} 21. Bf4 {[%clk 0:00:41]}  b5 {[%clk 0:00:52]} 22. Bxd6 {[%clk 0:00:38]}  bxc4 {[%clk 0:00:51]} 23. Bxf8 {[%clk 0:00:30]}  Bxf8 {[%clk 0:00:52]} 24. bxc4 {[%clk 0:00:24]}  Bb4 {[%clk 0:00:45]} 25. b3 {[%clk 0:00:20]}  a5 {[%clk 0:00:35]} 26. Red1 {[%clk 0:00:19]}  Bxd2 {[%clk 0:00:33]} 27. Nxd2 {[%clk 0:00:20]}  a4 {[%clk 0:00:29]} 28. Rb1 {[%clk 0:00:17]}  axb3 {[%clk 0:00:27]} 29. Rxb3 {[%clk 0:00:16]}  Qa6 {[%clk 0:00:28]} 30. Rc3 {[%clk 0:00:15]}  Qa1+ {[%clk 0:00:27]} 31. Kh2 {[%clk 0:00:06]}  Qxc3 {[%clk 0:00:27]} 32. e5 {[%clk 0:00:03]}  Qxe5+ {[%clk 0:00:26]} 0-1


[Site "https://www.chess.com"]

[Event "Titled Tuesday Blitz July 25 Late 2023"]
[White "Haraguchi, Diego Sashaki"]
[Black "BeautiFullMindChess"]
[WhiteFideId "22729925"]
[WhiteElo "2370"]
[BlackElo "2138"]
[Result "0-1"]
[Round "5"]
[TimeControl "180+2"]
[Date "2023.07.25"]
[WhiteClock "0:00:15"]
[BlackClock "0:00:56"]
[Board "157"]

1. e4 {[%clk 0:02:57]}  c5 {[%clk 0:03:00]} 2. Nf3 {[%clk 0:02:58]}  d6 {[%clk 0:03:00]} 3. c3 {[%clk 0:02:58]}  Nf6 {[%clk 0:03:00]} 4. d3 {[%clk 0:02:56]}  Bg4 {[%clk 0:03:00]} 5. Be3 {[%clk 0:02:54]}  Nbd7 {[%clk 0:02:59]} 6. Nbd2 {[%clk 0:02:52]}  g6 {[%clk 0:02:58]} 7. g3 {[%clk 0:02:52]}  e5 {[%clk 0:02:53]} 8. Bg2 {[%clk 0:02:39]}  Bg7 {[%clk 0:02:51]} 9. O-O {[%clk 0:02:39]}  O-O {[%clk 0:02:51]} 10. a4 {[%clk 0:02:37]}  Be6 {[%clk 0:02:50]} 11. Ng5 {[%clk 0:02:34]}  a6 {[%clk 0:02:46]} 12. Nxe6 {[%clk 0:02:32]}  fxe6 {[%clk 0:02:47]} 13. Qb3 {[%clk 0:02:32]}  Qe7 {[%clk 0:02:47]} 14. a5 {[%clk 0:02:27]}  Rab8 {[%clk 0:02:43]} 15. Nc4 {[%clk 0:02:23]}  Ng4 {[%clk 0:02:43]} 16. h3 {[%clk 0:02:19]}  Nxe3 {[%clk 0:02:42]} 17. fxe3 {[%clk 0:02:20]}  Bh6 {[%clk 0:02:42]} 18. Kh2 {[%clk 0:02:16]}  Kh8 {[%clk 0:02:34]} 19. Rxf8+ {[%clk 0:02:10]}  Bxf8 {[%clk 0:02:17]} 20. Rf1 {[%clk 0:02:07]}  h5 {[%clk 0:02:17]} 21. Nb6 {[%clk 0:02:03]}  Nf6 {[%clk 0:01:56]} 22. Rxf6 {[%clk 0:01:59]}  Qxf6 {[%clk 0:01:56]} 23. Nd7 {[%clk 0:01:59]}  Qf2 {[%clk 0:01:10]} 24. Nxb8 {[%clk 0:01:53]}  h4 {[%clk 0:01:10]} 25. gxh4 {[%clk 0:01:53]}  Bh6 {[%clk 0:01:04]} 26. Qxe6 {[%clk 0:01:51]}  Bxe3 {[%clk 0:01:04]} 27. Qxg6 {[%clk 0:00:18]}  Bf4+ {[%clk 0:01:01]} 28. Kh1 {[%clk 0:00:16]}  Qe1+ {[%clk 0:00:57]} 29. Bf1 {[%clk 0:00:16]}  Qxf1+ {[%clk 0:00:56]} 30. Qg1 {[%clk 0:00:15]}  Qxh3+ {[%clk 0:00:56]} 0-1


[Site "https://www.chess.com"]